fUSD/lending_fUSD_20241227
["ID","MTS","AMOUNT","RATE_DAILY","PERIOD"]
[346794082,1735291845431,-539.15,0.00011188,2]
[346794083,1735291845440,-911.97,0.00011188,2]
[346794084,1735291845450,-500.0,0.00011188,2]
[346794085,1735291845460,-1219.78,0.00011188,2]
[346794086,1735291845470,-500.0,0.00011188,2]
[346794087,1735291845479,-652.83,0.00011188,2]
[346794088,1735291845488,-500.0,0.00011188,2]
[346794089,1735291845497,-500.0,0.00011188,2]
[346794090,1735291845507,-607.58,0.00011188,2]
[346794091,1735291845516,-728.05,0.00011188,2]
[346794092,1735291845526,-1467.33,0.00011188,2]
[346794093,1735291845536,-500.0,0.00011188,2]
[346794094,1735291845546,-807.32,0.00011188,2]
[346794095,1735291845555,-944.53,0.00011188,2]
[346794096,1735291845565,-1038.77,0.00011188,2]
[346794097,1735291845574,-611.72,0.00011188,2]
[346794098,1735291845583,-1040.37,0.00011188,2]
[346794099,1735291845593,-1194.06,0.00011188,2]
[346794100,1735291845603,-500.0,0.00011188,2]
[346794101,1735291845612,-822.59,0.00011188,2]
[346794102,1735291845621,-1068.74,0.00011188,2]
[346794104,1735291845631,-753.04,0.00011188,2]
[346794105,1735291845640,-500.0,0.00011188,2]
[346794106,1735291845650,-500.0,0.00011188,2]
[346794107,1735291845659,-500.0,0.00011188,2]
[346794110,1735291845916,-598.11,0.00011188,2]
[346794111,1735291845927,-1460.88,0.00011188,2]
[346794112,1735291845939,-737.63,0.00011188,2]
[346794113,1735291845948,-520.83,0.00011188,2]
[346794114,1735291845957,-539.98,0.00011188,2]
[346794115,1735291845967,-707.16,0.00011188,2]
[346794116,1735291845976,-500.0,0.00011188,2]
[346794117,1735291845986,-794.7,0.00011188,2]
[346794118,1735291845995,-608.18,0.00011188,2]
[346794119,1735291846005,-500.0,0.00011188,2]
[346794120,1735291846014,-986.16,0.00011188,2]
[346794121,1735291846024,-1037.69,0.00011188,2]
[346794122,1735291846033,-1159.57,0.00011188,2]
[346794123,1735291846044,-500.0,0.00011188,2]
[346794124,1735291846054,-500.0,0.00011188,2]
[346794125,1735291846063,-500.0,0.00011188,2]
[346794126,1735291846073,-678.97,0.00011188,2]
[346794127,1735291846082,-623.23,0.00011188,2]
[346794128,1735291846092,-574.24521966,0.00011188,2]
[346794129,1735291846101,-500.0,0.00011188,2]
[346794130,1735291846111,-500.0,0.00011188,2]
[346794131,1735291846120,-745.17,0.00011188,2]
[346794132,1735291846129,-500.0,0.00011188,2]
[346794133,1735291846138,-1708.06,0.00011188,2]
[346794134,1735291846148,-1380.88,0.00011188,2]
[346794135,1735291846157,-500.0,0.00011188,2]
[346794136,1735291846166,-500.0,0.00011189,2]
[346794137,1735291846176,-500.0,0.00011189,2]
[346794138,1735291846187,-501.07557279,0.00011189,2]
[346794139,1735291846196,-500.0,0.00011189,2]
[346794140,1735291846205,-500.0,0.00011189,2]
[346794141,1735291846215,-500.0,0.00011189,2]
[346794142,1735291846224,-500.0,0.00011189,2]
[346794143,1735291846233,-500.0,0.00011189,2]
[346794144,1735291846242,-500.0,0.00011189,2]
[346794145,1735291846252,-500.0,0.00011189,2]
[346794146,1735291846261,-500.0,0.00011189,2]
[346794147,1735291846271,-500.0,0.00011189,2]
[346794148,1735291846280,-500.0,0.00011189,2]
[346794149,1735291846289,-500.0,0.00011189,2]
[346794150,1735291846299,-500.39858904,0.00011189,2]
[346794151,1735291846308,-500.0,0.00011189,2]
[346794152,1735291846317,-500.0,0.00011189,2]
[346794153,1735291846326,-500.0,0.00011189,2]
[346794154,1735291846336,-300.0,0.00011189,2]
[346794156,1735291846345,-500.0,0.00011189,2]
[346794158,1735291846355,-500.0,0.00011189,2]
[346794159,1735291846364,-500.0,0.00011189,2]
[346794160,1735291846374,-500.0,0.00011189,2]
[346794161,1735291846384,-500.0,0.00011189,2]
[346794162,1735291846394,-500.0,0.00011189,2]
[346794163,1735291846405,-500.0,0.00011189,2]
[346794164,1735291846416,-500.0,0.00011189,2]
[346794165,1735291846425,-501.23622309,0.00011189,2]
[346794166,1735291846438,-500.81737528,0.00011189,2]
[346794167,1735291846447,-500.0,0.00011189,2]
[346794168,1735291846457,-500.0,0.00011189,2]
[346794169,1735291846467,-500.0,0.00011189,2]
[346794170,1735291846476,-500.0,0.00011189,2]
[346794171,1735291846486,-500.0,0.00011189,2]
[346794172,1735291846495,-500.0,0.00011189,2]
[346794173,1735291846505,-500.0,0.00011189,2]
[346794174,1735291846515,-500.0,0.00011189,2]
[346794175,1735291846524,-500.0,0.00011189,2]
[346794176,1735291846533,-346.58030908,0.00011189,2]
[346794177,1735291846543,-500.0,0.00011189,2]
[346794178,1735291846552,-293.30107421,0.00011189,2]
[346794179,1735291846562,-503.31540898,0.00011189,2]
[346794180,1735291846571,-500.0,0.00011189,2]
[346794181,1735291846580,-500.0,0.00011189,2]
[346794182,1735291846590,-500.0,0.00011189,2]
[346794183,1735291846599,-505.99682846,0.00011189,2]
[346794184,1735291846608,-500.0,0.00011189,2]
[346794185,1735291846618,-500.46264487,0.00011189,2]
[346794186,1735291846627,-500.0,0.00011189,2]
[346794187,1735291846637,-500.0,0.00011189,2]
[346794188,1735291846646,-501.36711054,0.00011189,2]
[346794189,1735291846656,-500.0,0.00011189,2]
[346794190,1735291846666,-500.0,0.00011189,2]
[346794191,1735291846675,-500.0,0.00011189,2]
[346794192,1735291846687,-500.0,0.00011189,2]
[346794193,1735291846697,-500.0,0.00011189,2]
[346794194,1735291846711,-500.0,0.00011189,2]
[346794195,1735291846721,-500.0,0.00011189,2]
[346794196,1735291846731,-500.0,0.00011189,2]
[346794197,1735291846740,-500.0,0.00011189,2]
[346794198,1735291846749,-500.0,0.00011189,2]
[346794199,1735291846758,-500.0,0.00011189,2]
[346794200,1735291846767,-500.0,0.00011189,2]
[346794201,1735291846777,-500.0,0.00011189,2]
[346794202,1735291846786,-503.03463768,0.00011189,2]
[346794203,1735291846796,-532.72439998,0.00011189,2]
[346794204,1735291846808,-500.0,0.00011189,2]
[346794205,1735291846817,-500.0,0.00011189,2]
[346794206,1735291846826,-500.0,0.00011189,2]
[346794207,1735291846836,-610.98,0.00011189,2]
[346794208,1735291846846,-500.0,0.00011189,2]
[346794209,1735291846855,-500.0,0.00011189,2]
[346794210,1735291846864,-500.0,0.00011189,2]
[346794211,1735291846873,-500.0,0.00011189,2]
[346794212,1735291846885,-500.0,0.00011189,2]
[346794213,1735291846895,-500.0,0.00011189,2]
[346794214,1735291846904,-500.0,0.00011189,2]
[346794215,1735291846915,-500.0,0.00011189,2]
[346794216,1735291846925,-500.0,0.00011189,2]
[346794217,1735291846936,-500.0,0.00011189,2]
[346794218,1735291846946,-500.0,0.00011189,2]
[346794219,1735291846955,-500.0,0.00011189,2]
[346794220,1735291846965,-500.0,0.00011189,2]
[346794221,1735291846975,-235.11570376,0.00011189,2]
[346794222,1735291846984,-500.0,0.00011189,2]
[346794223,1735291846993,-500.0,0.00011189,2]
[346794224,1735291847003,-500.0,0.00011189,2]
[346794225,1735291847013,-500.0,0.00011189,2]
[346794226,1735291847022,-191.96194033,0.00011189,2]
[346794227,1735291847032,-500.0,0.00011189,2]
[346794228,1735291847042,-500.0,0.00011189,2]
[346794229,1735291847052,-500.0,0.00011189,2]
[346794230,1735291847062,-500.0,0.00011189,2]
[346794231,1735291847071,-500.0,0.00011189,2]
[346794232,1735291847081,-500.0,0.00011189,2]
[346794233,1735291847091,-744.32,0.00011189,2]
[346794234,1735291847101,-500.0,0.00011189,2]
[346794235,1735291847110,-500.0,0.00011189,2]
[346794236,1735291847120,-502.37729575,0.00011189,2]
[346794237,1735291847129,-500.0,0.00011189,2]
[346794238,1735291847139,-500.0,0.00011189,2]
[346794239,1735291847149,-500.0,0.00011189,2]
[346794240,1735291847158,-500.0,0.00011189,2]
[346794241,1735291847168,-500.0,0.00011189,2]
[346794242,1735291847178,-500.0,0.00011189,2]
[346794243,1735291847192,-500.0,0.00011189,2]
[346794244,1735291847202,-500.0,0.00011189,2]
[346794245,1735291847211,-500.0,0.00011189,2]
[346794246,1735291847221,-500.0,0.00011189,2]
[346794247,1735291847230,-500.0,0.00011189,2]
[346794248,1735291847240,-500.0,0.00011189,2]
[346794249,1735291847249,-500.0,0.00011189,2]
[346794250,1735291847259,-503.09,0.00011189,2]
[346794251,1735291847268,-761.42,0.00011189,2]
[346794252,1735291847278,-500.0,0.00011189,2]
[346794253,1735291847287,-547.06,0.00011189,2]
[346794254,1735291847296,-390.87736506,0.00011189,2]
[346794255,1735291847306,-500.28582136,0.00011189,2]
[346794256,1735291847315,-500.0,0.00011189,2]
[346794257,1735291847324,-500.0,0.00011189,2]
[346794258,1735291847334,-500.0,0.00011189,2]
[346794259,1735291847343,-3257.28,0.00011189,2]
[346794260,1735291847353,-788.39,0.00011189,2]
[346794261,1735291847362,-500.0,0.00011189,2]
[346794262,1735291847372,-505.47386236,0.00011189,2]
[346794263,1735291847381,-500.0,0.00011189,2]
[346794264,1735291847391,-500.0,0.00011189,2]
[346794265,1735291847400,-500.0,0.00011189,2]
[346794266,1735291847410,-500.0,0.00011189,2]
[346794267,1735291847420,-500.0,0.00011189,2]
[346794268,1735291847434,-500.0,0.00011189,2]
[346794269,1735291847444,-500.0,0.00011189,2]
[346794270,1735291847454,-500.0,0.00011189,2]
[346794271,1735291847464,-500.0,0.00011189,2]
[346794272,1735291847474,-500.0,0.00011189,2]
[346794273,1735291847484,-500.0,0.00011189,2]
[346794274,1735291847493,-500.0,0.00011189,2]
[346794275,1735291847503,-500.0,0.00011189,2]
[346794276,1735291847512,-20997.22,0.00011189,2]
[346794277,1735291847522,-500.0,0.00011189,2]
[346794278,1735291847532,-500.0,0.00011189,2]
[346794279,1735291847541,-500.0,0.00011189,2]
[346794280,1735291847551,-602.24,0.00011189,2]
[346794281,1735291847560,-500.0,0.00011189,2]
[346794282,1735291847570,-500.0,0.00011189,2]
[346794283,1735291847580,-500.0,0.00011189,2]
[346794284,1735291847589,-500.0,0.00011189,2]
[346794285,1735291847599,-855.98,0.00011189,2]
[346794286,1735291847608,-500.0,0.00011189,2]
[346794287,1735291847617,-500.0,0.00011189,2]
[346794288,1735291847627,-500.0,0.00011189,2]
[346794289,1735291847636,-500.0,0.00011189,2]
[346794290,1735291847646,-500.0,0.00011189,2]
[346794291,1735291847655,-500.0,0.00011189,2]
[346794292,1735291847664,-500.0,0.00011189,2]
[346794293,1735291847674,-500.0,0.00011189,2]
[346794294,1735291847684,-500.0,0.00011189,2]
[346794295,1735291847694,-500.0,0.00011189,2]
[346794296,1735291847703,-500.0,0.00011189,2]
[346794297,1735291847712,-512.98,0.00011189,2]
[346794298,1735291847722,-500.0,0.00011189,2]
[346794299,1735291847731,-500.0,0.00011189,2]
[346794300,1735291847741,-500.0,0.00011189,2]
[346794301,1735291847751,-350.19390126,0.00011189,2]
[346794302,1735291847760,-500.0,0.00011189,2]
[346794303,1735291847769,-500.0,0.00011189,2]
[346794304,1735291847779,-545.61,0.00011189,2]
[346794305,1735291847788,-500.0,0.00011189,2]
[346794306,1735291847798,-500.0,0.00011189,2]
[346794307,1735291847810,-500.0,0.00011189,2]
[346794308,1735291847820,-500.0,0.00011189,2]
[346794309,1735291847829,-500.0,0.00011189,2]
[346794310,1735291847838,-500.0,0.00011189,2]
[346794311,1735291847848,-500.0,0.00011189,2]
[346794312,1735291847857,-500.0,0.00011189,2]
[346794313,1735291847867,-500.0,0.00011189,2]
[346794314,1735291847876,-500.0,0.00011189,2]
[346794315,1735291847886,-667.66,0.00011189,2]
[346794316,1735291847895,-730.19,0.00011189,2]
[346794317,1735291847905,-682.01,0.00011189,2]
[346794318,1735291847914,-796.01,0.00011189,2]
[346794319,1735291847923,-500.0,0.00011189,2]
[346794320,1735291847937,-500.0,0.00011189,2]
[346794321,1735291847946,-500.0,0.00011189,2]
[346794322,1735291847956,-500.0,0.00011189,2]
[346794323,1735291847966,-1812.9,0.00011189,2]
[346794324,1735291847975,-500.0,0.00011189,2]
[346794325,1735291847984,-500.0,0.00011189,2]
[346794326,1735291847994,-500.0,0.00011189,2]
[346794327,1735291848003,-500.0,0.00011189,2]
[346794328,1735291848013,-1394.5,0.00011189,2]
[346794329,1735291848023,-500.0,0.00011189,2]
[346794330,1735291848032,-500.0,0.00011189,2]
[346794331,1735291848043,-558.7,0.00011189,2]
[346794332,1735291848052,-500.0,0.00011189,2]
[346794333,1735291848062,-619.72,0.00011189,2]
[346794334,1735291848072,-956.08,0.00011189,2]
[346794335,1735291848082,-500.0,0.00011189,2]
[346794336,1735291848091,-712.0,0.00011189,2]
[346794337,1735291848101,-500.0,0.00011189,2]
[346794338,1735291848111,-500.0,0.00011189,2]
[346794339,1735291848120,-656.1,0.00011189,2]
[346794340,1735291848130,-506.77,0.00011189,2]
[346794341,1735291848139,-500.0,0.00011189,2]
[346794342,1735291848149,-500.0,0.00011189,2]
[346794343,1735291848159,-500.0,0.00011189,2]
[346794344,1735291848169,-500.0,0.00011189,2]
[346794345,1735291848178,-500.0,0.00011189,2]
[346794346,1735291848189,-500.0,0.00011189,2]
[346794347,1735291848199,-500.0,0.00011189,2]
[346794348,1735291848208,-1058.08,0.00011189,2]
[346794349,1735291848218,-500.0,0.00011189,2]
[346794350,1735291848228,-500.0,0.00011189,2]
[346794351,1735291848238,-500.0,0.00011189,2]
[346794352,1735291848247,-2201.66,0.00011189,2]
[346794353,1735291848258,-500.0,0.00011189,2]
[346794354,1735291848268,-615.14,0.00011189,2]
[346794355,1735291848277,-500.0,0.00011189,2]
[346794356,1735291848372,-500.0,0.00011189,2]
[346794357,1735291848382,-500.0,0.00011189,2]
[346794358,1735291848392,-718.48,0.00011189,2]
[346794359,1735291848401,-500.0,0.00011189,2]
[346794360,1735291848411,-500.0,0.00011189,2]
[346794361,1735291848421,-2388.13,0.00011189,2]
[346794362,1735291848433,-500.0,0.00011189,2]
[346794363,1735291848443,-1194.72,0.00011189,2]
[346794364,1735291848453,-500.0,0.00011189,2]
[346794365,1735291848463,-500.0,0.00011189,2]
[346794366,1735291848473,-727.21,0.00011189,2]
[346794367,1735291848483,-333.75126756,0.00011189,2]
[346794368,1735291848493,-500.0,0.00011189,2]
[346794369,1735291848504,-151.0,0.00011189,2]
[346794370,1735291848513,-151.0,0.00011189,2]
[346794371,1735291848523,-151.0,0.00011189,2]
[346794372,1735291848533,-151.0,0.00011189,2]
[346794373,1735291848542,-251.170636,0.00011189,2]
[346794374,1735291848552,-716.12,0.00011189,2]
[346794375,1735291848562,-665.46,0.00011189,2]
[346794376,1735291848572,-500.0,0.00011189,2]
[346794377,1735291848581,-500.0,0.00011189,2]
[346794378,1735291848592,-784.6,0.00011189,2]
[346794379,1735291848601,-500.0,0.00011189,2]
[346794380,1735291848610,-519.63,0.00011189,2]
[346794381,1735291848620,-500.0,0.00011189,2]
[346794382,1735291848630,-547.96,0.00011189,2]
[346794383,1735291848639,-1174.5,0.00011189,2]
[346794384,1735291848649,-4037.81,0.00011189,2]
[346794385,1735291848659,-500.0,0.00011189,2]
[346794386,1735291848669,-712.15,0.00011189,2]
[346794387,1735291848679,-916.48,0.00011189,2]
[346794388,1735291848692,-500.0,0.00011189,2]
[346794389,1735291848702,-500.0,0.00011189,2]
[346794390,1735291848711,-685.95,0.00011189,2]
[346794391,1735291848721,-500.0,0.00011189,2]
[346794392,1735291848731,-1025.07,0.00011189,2]
[346794393,1735291848741,-11067.9,0.00011189,2]
[346794394,1735291848751,-500.0,0.00011189,2]
[346794395,1735291848760,-500.0,0.00011189,2]
[346794396,1735291848770,-500.0,0.00011189,2]
[346794397,1735291848779,-150.0,0.00011189,2]
[346794398,1735291848789,-500.0,0.00011189,2]
[346794399,1735291848804,-845.92,0.00011189,2]
[346794400,1735291848817,-651.53,0.00011189,2]
[346794401,1735291848826,-3380.43,0.00011189,2]
[346794402,1735291848836,-500.0,0.00011189,2]
[346794403,1735291848846,-1382.04,0.00011189,2]
[346794404,1735291848856,-500.0,0.00011189,2]
[346794405,1735291848865,-603.43246518,0.00011189,2]
[346794406,1735291848875,-500.0,0.00011189,2]
[346794407,1735291848885,-570.09,0.00011189,2]
[346794408,1735291848895,-647.81,0.00011189,2]
[346794409,1735291848904,-1445.16,0.00011189,2]
[346794410,1735291848913,-6812.66,0.00011189,2]
[346794411,1735291848923,-500.0,0.00011189,2]
[346794412,1735291848933,-622.64,0.00011189,2]
[346794413,1735291848942,-500.0,0.00011189,2]
[346794414,1735291848952,-941.71,0.00011189,2]
[346794415,1735291848961,-500.0,0.00011189,2]
[346794416,1735291848971,-840.09,0.00011189,2]
[346794417,1735291848981,-504.63959473,0.00011189,2]
[346794418,1735291848990,-1248.15,0.00011189,2]
[346794419,1735291848999,-514.02,0.00011189,2]
[346794420,1735291849008,-500.0,0.00011189,2]
[346794421,1735291849017,-500.0,0.00011189,2]
[346794422,1735291849026,-500.0,0.00011189,2]
[346794423,1735291849035,-500.0,0.00011189,2]
[346794424,1735291849046,-810.32,0.00011189,2]
[346794425,1735291849056,-500.0,0.00011189,2]
[346794426,1735291849065,-546.75,0.00011189,2]
[346794427,1735291849075,-500.0,0.00011189,2]
[346794428,1735291849084,-500.0,0.00011189,2]
[346794429,1735291849093,-500.0,0.00011189,2]
[346794430,1735291849102,-3445.15,0.00011189,2]
[346794431,1735291849111,-1036.07,0.00011189,2]
[346794432,1735291849121,-710.41,0.00011189,2]
[346794433,1735291849130,-500.0,0.00011189,2]
[346794434,1735291849139,-500.0,0.00011189,2]
[346794435,1735291849148,-500.0,0.00011189,2]
[346794436,1735291849157,-562.36,0.00011189,2]
[346794437,1735291849167,-500.0,0.00011189,2]
[346794438,1735291849176,-500.0,0.00011189,2]
[346794439,1735291849188,-500.0,0.00011189,2]
[346794440,1735291849197,-1199.19,0.00011189,2]
[346794441,1735291849206,-500.0,0.00011189,2]
[346794442,1735291849215,-779.74,0.00011189,2]
[346794443,1735291849224,-500.0,0.00011189,2]
[346794444,1735291849234,-726.35,0.00011189,2]
[346794445,1735291849243,-500.0,0.00011189,2]
[346794446,1735291849253,-13215.37,0.00011189,2]
[346794447,1735291849262,-599.75815502,0.00011189,2]
[346794448,1735291849271,-1273.19,0.00011189,2]
[346794449,1735291849281,-500.0,0.00011189,2]
[346794450,1735291849290,-582.75142802,0.00011189,2]
[346794451,1735291849299,-545.24,0.00011189,2]
[346794452,1735291849309,-1658.53,0.00011189,2]
[346794453,1735291849319,-752.21,0.00011189,2]
[346794454,1735291849329,-3851.06,0.00011189,2]
[346794455,1735291849338,-1053.28,0.00011189,2]
[346794456,1735291849347,-852.86,0.00011189,2]
[346794457,1735291849357,-1692.91,0.00011189,2]
[346794458,1735291849366,-6007.98,0.00011189,2]
[346794459,1735291849375,-500.0,0.00011189,2]
[346794460,1735291849385,-500.0,0.00011189,2]
[346794461,1735291849394,-500.0,0.00011189,2]
[346794462,1735291849403,-680.47,0.00011189,2]
[346794463,1735291849412,-4163.63,0.00011189,2]
[346794464,1735291849422,-2973.4,0.00011189,2]
[346794465,1735291849433,-500.0,0.00011189,2]
[346794466,1735291849442,-647.2,0.00011189,2]
[346794467,1735291849452,-2740.18,0.00011189,2]
[346794468,1735291849461,-503.88149891,0.0001119,2]
[346794469,1735291849470,-151.0,0.0001119,2]
[346794470,1735291849479,-500.0,0.0001119,2]
[346794471,1735291849488,-500.0,0.0001119,2]
[346794472,1735291849498,-500.0,0.0001119,2]
[346794473,1735291849507,-1393.24,0.0001119,2]
[346794474,1735291849516,-2053.23,0.0001119,2]
[346794475,1735291849526,-1869.34,0.0001119,2]
[346794476,1735291849535,-1472.18,0.0001119,2]
[346794477,1735291849544,-1294.63,0.0001119,2]
[346794478,1735291849553,-2651.44,0.0001119,2]
[346794479,1735291849563,-552.15,0.0001119,2]
[346794480,1735291849573,-2385.02,0.0001119,2]
[346794481,1735291849582,-6429.09,0.0001119,2]
[346794482,1735291849591,-514.31,0.0001119,2]
[346794483,1735291849600,-3610.06,0.0001119,2]
[346794484,1735291849610,-509.51,0.0001119,2]
[346794485,1735291849619,-152.95,0.0001119,2]
[346794486,1735291849628,-152.65,0.00011191,2]
[346794487,1735291849637,-500.0,0.00011191,2]
[346794488,1735291849647,-500.0,0.00011191,2]
[346794489,1735291849656,-500.0,0.00011191,2]
[346794490,1735291849667,-500.0,0.00011191,2]
[346794491,1735291849676,-500.0,0.00011191,2]
[346794492,1735291849688,-500.0,0.00011191,2]
[346794493,1735291849698,-500.0,0.00011191,2]
[346794494,1735291849707,-500.0,0.00011191,2]
[346794495,1735291849716,-500.0,0.00011191,2]
[346794496,1735291849726,-500.0,0.00011191,2]
[346794497,1735291849735,-306.48,0.00011191,2]
[346794498,1735291849743,-5035.98,0.00011191,2]
[346794499,1735291849753,-25332.39,0.00011191,2]
[346794500,1735291849762,-500.0,0.00011191,2]
[346794501,1735291849772,-500.0,0.00011191,2]
[346794502,1735291849781,-437.0079381,0.00011191,2]
[346794503,1735291849791,-500.0,0.00011191,2]
[346794504,1735291849800,-1127.97,0.00011191,2]
[346794505,1735291849811,-941.73,0.00011191,2]
[346794506,1735291849823,-2325.94,0.00011191,2]
[346794507,1735291849833,-14879.94,0.00011191,2]
[346794508,1735291849842,-500.0,0.00011191,2]
[346794509,1735291849851,-1919.74,0.00011191,2]
[346794510,1735291849862,-1567.69,0.00011191,2]
[346794511,1735291849871,-1310.53,0.00011191,2]
[346794512,1735291849880,-3620.11,0.00011191,2]
[346794513,1735291849891,-500.0,0.00011191,2]
[346794514,1735291849900,-9676671.34885752,0.00011192,4]
[346794515,1735291850918,-267.180579,0.00010999,2]
[346794516,1735291850930,-232.819421,0.00010999,2]
[346794517,1735291850943,-500.0,0.00010999,2]
[346794518,1735291850952,-8915.39040502,0.00011192,4]
[346794519,1735291850967,-690.95434555,0.00011192,4]
[346794520,1735291850979,-4399.11840372,0.00011192,4]
[346794521,1735291851003,-7746.45942982,0.00011192,4]
[346794522,1735291851024,-715.20274929,0.00011192,4]
[346794523,1735291851672,-500.0,0.00010997,2]
[346794524,1735291851682,-339.02,0.00011192,4]
[346794525,1735291851695,-909.4681852,0.00011192,4]
[346794526,1735291851715,-324.4,0.00010997,2]
[346794527,1735291851727,-299.59,0.00010997,2]
[346794528,1735291851737,-209098.74149012,0.00011192,4]
[346794529,1735291851749,-500601.49204417,0.00011192,4]
[346794530,1735291851760,-2481.20724208,0.00011192,4]
[346794531,1735291851772,-19420.0,0.00011192,4]
[346794532,1735291851785,-7189.79366748,0.00011192,4]
[346794534,1735292156449,661.97,8.474e-05,2]
[346794536,1735292615743,162.76,8.13e-05,2]
[346794539,1735292850976,-3791.15,0.00011192,4]
[346794561,1735292977388,-932000.0,0.00011192,4]
[346794574,1735293032411,-167.23,9.996e-05,2]
[346794575,1735293032421,-3219.67879471,0.0001,2]
[346794576,1735293032431,-802.13,0.00010078,2]
[346794577,1735293032440,-1786.8247589,0.00010078,2]
[346794578,1735293032450,-238.33,0.00010137,2]
[346794579,1735293032459,-300.0,0.00010155,2]
[346794580,1735293032468,-15676.59020346,0.00010156,2]
[346794581,1735293032480,-5056.73125521,0.00010156,2]
[346794582,1735293032492,-3166.67854133,0.00010156,2]
[346794583,1735293032503,-250.0,0.00010185,2]
[346794584,1735293032513,-1000.0,0.00010248,2]
[346794585,1735293032522,-250.0,0.00010367,2]
[346794586,1735293032532,-445.22,0.0001037,2]
[346794587,1735293032542,-150.0,0.00010438,2]
[346794588,1735293032551,-1870.79,0.0001046,2]
[346794589,1735293032561,-200.0,0.00010464,2]
[346794591,1735293032570,-1500.0,0.00010468,2]
[346794593,1735293032579,-661.97,0.00010738,2]
[346794595,1735293032589,-1032.3382,0.00010959,2]
[346794597,1735293032598,-504.97172623,0.00010995,2]
[346794599,1735293032607,-1015.1,0.00010995,2]
[346794601,1735293032616,-6627.91,0.00010995,2]
[346794603,1735293032626,-1523.11,0.00010995,2]
[346794605,1735293032635,-1723.01153244,0.00010995,2]
[346794607,1735293032647,-13317.06846756,0.00010995,2]
[346794609,1735293032657,-2435.38,0.00010995,2]
[346794611,1735293032667,-4559.74,0.00010995,2]
[346794613,1735293032676,-10380.65,0.00010995,2]
[346794615,1735293032686,-3149.24,0.00010995,2]
[346794617,1735293032696,-2388.6,0.00010995,2]
[346794619,1735293032705,-8239.64,0.00010995,2]
[346794621,1735293032714,-891.43,0.00010995,2]
[346794623,1735293032723,-918.77,0.00010995,2]
[346794625,1735293032732,-1664.55,0.00010995,2]
[346794626,1735293032741,-2123.62,0.00010995,2]
[346794627,1735293032754,-802.44,0.00010995,2]
[346794628,1735293032765,-500.0,0.00010996,2]
[346794629,1735293032775,-1967.56153244,0.00010996,2]
[346794630,1735293032803,-644.666761,0.00010996,2]
[346794631,1735293032814,-450.1191911,0.00010996,2]
[346794632,1735293032825,-1107.64615845,0.00010996,2]
[346794633,1735293032837,-2366.02522948,0.00010996,2]
[346794634,1735293032876,-5625.8238322,0.00010996,2]
[346794635,1735293032885,-500.0,0.00010996,2]
[346794636,1735293032895,-627.59,0.00010996,2]
[346794637,1735293032904,-854.85,0.00010996,2]
[346794638,1735293032914,-500.0,0.00010996,2]
[346794639,1735293032924,-500.0,0.00010996,2]
[346794640,1735293032933,-557.65,0.00010996,2]
[346794641,1735293032944,-296.19998181,0.00010996,2]